bitfinex-derivatives/quotes_ETHF0:USTF0_20240826
["timestamp","ask_amount","ask_price","bid_price","bid_amount"]
[1724657420921,0.4405334,2740.9,2740.8,1.41474]
[1724657425426,0.44024208,2740.9,2740.8,0.36473]
[1724657425622,0.36475,2740.7,2740.6,3.2078]
[1724657425823,0.36477,2740.6,2740.5,0.3782]
[1724657426016,0.36477,2740.6,2740.4,0.00273893]
[1724657426017,0.36478,2740.5,2740.4,0.00273893]
[1724657426332,5.97110924,2740.5,2740.4,0.00273893]
[1724657426535,5.97110924,2740.5,2739.6,4.2578]
[1724657426536,0.36484,2740.1,2739.6,4.2578]
[1724657426723,2.38137143,2739.9,2739.8,0.36487]
[1724657426924,0.44024208,2739.9,2739.8,0.36487]
[1724657427122,0.44044074,2739.9,2739.8,1.41487]
[1724657427423,0.44044074,2739.9,2739.8,1.4195813]
[1724657428121,2.81995222,2739.9,2739.8,0.3695813]
[1724657428334,0.44044074,2739.9,2739.8,0.3695813]
[1724657429930,2.81909685,2739.9,2739.8,0.3695813]
[1724657430126,2.78490127,2739.9,2739.8,0.3695813]
[1724657433932,2.78490127,2739.9,2739.8,0.0047113]
[1724657434134,2.78490127,2739.9,2739.8,0.3695813]
[1724657434835,2.78475978,2739.9,2739.8,0.3695813]
[1724657437230,0.40610367,2739.9,2739.8,0.3695813]
[1724657437734,2.78475978,2739.9,2739.8,0.3695813]
[1724657437930,0.40610367,2739.9,2739.8,0.3695813]
[1724657438332,0.40610367,2739.9,2739.8,0.0047113]
[1724657438333,6.79921978,2739.9,2739.8,0.0047113]
[1724657438532,7.62836367,2739.9,2739.8,0.0047113]
[1724657438837,7.62836367,2739.9,2739.3,0.36494]
[1724657438838,0.36491,2739.6,2739.3,0.36494]
[1724657439139,1.90057605,2739.4,2739.3,0.36494]
[1724657439442,2.28147605,2739.5,2739.4,0.36493]
[1724657439829,2.28147605,2739.5,2739.4,0.36948416]
[1724657440336,1.90057605,2739.6,2739.5,0.36491]
[1724657443238,1.9060522,2739.7,2739.6,0.3649]
[1724657443442,1.43006269,2739.7,2739.6,2.00986]
[1724657443645,1.43006269,2739.7,2739.6,1.0976]
[1724657444835,1.43006269,2739.7,2739.6,4.3054]
[1724657445030,1.43006269,2739.7,2739.6,3.5727]
[1724657447545,1.43006269,2739.7,2739.6,10.65536]
[1724657447844,0.00547615,2739.7,2739.6,11.56762]
[1724657448633,0.00547615,2739.7,2739.6,16.56762]
[1724657448832,0.00547615,2739.7,2739.6,20.7994956]
[1724657452343,0.95516984,2739.7,2739.6,7.2231]
[1724657452543,0.00547615,2739.7,2739.6,0.3649]
[1724657452749,1.43006269,2739.7,2739.6,0.3649]
[1724657453348,0.00547615,2739.7,2739.6,0.3649]
[1724657454055,5.08046269,2739.7,2739.5,3.2078]
[1724657454249,1.43006269,2739.7,2739.6,0.3649]
[1724657454450,0.00547615,2739.7,2739.6,0.3649]
[1724657462063,0.00547615,2739.7,2739.6,1.4149]
[1724657462561,1.43056721,2739.7,2739.6,6.88982]
[1724657462761,2.38068066,2739.7,2739.6,6.88982]
[1724657462952,0.9555896,2739.7,2739.6,5.97756]
[1724657463353,0.00547615,2739.7,2739.6,5.97756]
[1724657463860,0.95574587,2739.7,2739.6,5.97756]
[1724657464150,0.00547615,2739.7,2739.6,0.3649]
[1724657464365,1.43056721,2739.7,2739.6,0.3649]
[1724657464553,0.00547615,2739.7,2739.6,0.3649]
[1724657464870,0.36997615,2739.7,2739.6,0.3649]
[1724657466864,0.00547615,2739.7,2739.6,4.92756]
[1724657467064,1.43147221,2739.7,2739.6,5.83982]
[1724657468069,0.00547615,2739.7,2739.6,5.83982]
[1724657468366,1.43147221,2739.7,2739.6,5.83982]
[1724657470165,0.00547615,2739.7,2739.6,5.83982]
[1724657470360,0.00547615,2739.7,2739.6,4.92756]
[1724657471054,1.43381416,2739.7,2739.6,14.81419404]
[1724657471255,0.95778632,2739.7,2739.6,15.76780212]
[1724657471466,0.00547615,2739.7,2739.6,15.76780212]
[1724657472262,0.95231017,2739.8,2739.7,2.18935]
[1724657472458,2.7e-06,2739.9,2739.8,1.27706]
[1724657472763,2.7e-06,2739.9,2739.8,9.95715029]
[1724657472952,2.7e-06,2739.9,2739.8,14.95715029]
[1724657473554,1.43381416,2740.1,2740.0,1.27698]
[1724657473964,1.43381416,2740.1,2740.0,13.73598352]
[1724657474965,1.43381416,2740.1,2740.0,16.94378352]
[1724657475369,1.43381416,2740.1,2740.0,11.94378352]
[1724657475571,1.43381416,2740.1,2740.0,7.38205352]
[1724657475872,1.43381416,2740.1,2740.0,3.57265]
[1724657476062,1.81191416,2740.1,2740.0,3.57265]
[1724657476367,1.81191416,2740.1,2740.0,0.36485]
[1724657476665,2.2841522,2740.1,2740.0,0.36485]
[1724657476866,2.46664152,2740.1,2740.0,0.36485]
[1724657477071,2.46664012,2740.1,2740.0,0.36485]
[1724657479958,2.46664012,2740.1,2740.0,1.27698]
[1724657480667,2.46664012,2740.1,2740.0,0.36485]
[1724657482072,2.46663547,2740.1,2740.0,0.36485]
[1724657483270,0.56605942,2740.1,2740.0,1.27698]
[1724657483473,1.81103266,2740.1,2740.0,1.27698]
[1724657483674,0.56605942,2740.1,2740.0,1.27698]
[1724657484074,0.38357615,2740.1,2740.0,1.27698]
[1724657484275,0.56605942,2740.1,2740.0,1.27698]
[1724657484471,1.81089098,2740.1,2740.0,1.27698]
[1724657484677,1.99334285,2740.1,2740.0,1.27698]
[1724657484880,0.56605942,2740.1,2740.0,1.27698]
[1724657487072,0.56605315,2740.1,2740.0,1.27698]
[1724657487273,0.56605314,2740.1,2740.0,1.27698]
[1724657488275,2.46662919,2740.1,2740.0,1.27698]
[1724657488675,2.08852919,2740.1,2740.0,1.27698]
[1724657490085,2.08852919,2740.1,2740.0,2.32698]
[1724657490482,2.45662919,2740.1,2740.0,2.32698]
[1724657491078,0.18795314,2740.1,2740.0,5.97658]
[1724657491379,0.00547615,2740.1,2740.0,15.7034129]
[1724657492696,0.00547615,2740.1,2740.0,10.7034129]
[1724657495283,0.00547615,2740.1,2740.0,13.9112129]
[1724657498187,0.3875,2740.5,2740.4,1.27678]
[1724657498489,0.00429375,2741.2,2741.1,0.3647]
[1724657498680,0.35429375,2741.2,2741.1,1.4147]
[1724657498877,0.35429375,2741.2,2741.1,4.6225]
[1724657499185,0.00429375,2741.2,2741.1,4.6225]
[1724657500985,0.00429375,2741.2,2741.1,12.50135215]
[1724657502090,0.00429375,2741.2,2741.1,11.45135215]
[1724657502290,0.00429375,2741.2,2741.1,7.80335215]
[1724657503184,0.00429375,2741.2,2741.1,3.5725]
[1724657507994,0.00429375,2741.2,2741.1,13.69308118]
[1724657508196,0.00429375,2741.2,2741.1,14.60484118]
[1724657515214,0.00429375,2741.2,2741.1,10.95684118]
[1724657519099,0.00429375,2741.2,2741.1,14.60484118]
[1724657521999,0.00429375,2741.2,2741.1,11.39704118]
[1724657522209,0.00429375,2741.2,2741.1,14.60484118]
[1724657522807,0.00429375,2741.2,2741.1,11.39704118]
[1724657522998,0.00429375,2741.2,2741.1,14.60484118]
[1724657523996,0.00429375,2741.2,2741.1,13.13484118]
[1724657524797,0.00429375,2741.2,2741.1,14.04660118]
[1724657527216,0.00429375,2741.2,2741.1,17.06260118]
[1724657527411,0.00429375,2741.2,2741.1,14.04660118]
[1724657529101,0.00429375,2741.2,2741.1,10.83880118]
[1724657529305,0.00429375,2741.2,2741.1,14.04660118]
[1724657529712,0.00429375,2741.2,2741.1,8.43684118]
[1724657529913,3.65229375,2741.2,2741.1,0.3647]
[1724657530118,4.60372766,2741.2,2741.0,0.36471]
[1724657530309,5.24041854,2741.1,2740.9,0.00547615]
[1724657530510,3.13528636,2741.0,2740.9,0.00547615]
[1724657530710,6.79146638,2741.0,2740.5,1.05]
[1724657530911,0.9520903,2740.6,2740.5,1.41478]
[1724657531321,5.3371903,2740.6,2740.5,1.41478]
[1724657531717,4.3851,2740.6,2740.5,1.41478]
[1724657532019,5.33736322,2740.6,2740.5,0.36478]
[1724657532412,1.68856322,2740.6,2740.5,0.36478]
[1724657532715,0.7363,2740.6,2740.5,0.36478]
[1724657533015,1.68870074,2740.6,2740.5,0.36478]
[1724657533406,0.7363,2740.6,2740.5,0.36478]
[1724657533610,1.78813545,2740.6,2740.5,2.88478]
[1724657533822,0.95256364,2740.6,2740.5,7.10576192]
[1724657536031,0.95256364,2740.6,2740.5,8.01772192]
[1724657536921,0.95256364,2740.6,2740.5,7.10576192]
[1724657537427,1.42813545,2740.7,2740.6,0.36477]
[1724657538718,1.9041806,2740.8,2740.7,0.36475]
[1724657539023,2.08660592,2740.8,2740.7,0.36475]
[1724657539527,1.9041806,2740.8,2740.7,0.36475]
[1724657539725,2.08660592,2740.8,2740.7,3.57255]
[1724657541125,0.18242532,2740.8,2740.7,3.57255]
[1724657541828,1.61313112,2740.8,2740.7,4.48444]
[1724657542223,2.29077819,2740.9,2740.7,4.48444]
[1724657542224,1.4307058,2740.9,2740.8,1.2766]
[1724657542427,2.26667819,2741.1,2740.9,1.27656]
[1724657542428,1.4307058,2741.0,2740.9,1.27656]
[1724657542629,1.61310312,2741.0,2740.9,1.27656]
[1724657542925,1.4307058,2741.0,2740.9,5.10981058]
[1724657543525,1.90767819,2741.1,2741.0,0.36471]
[1724657544025,2.09007508,2741.1,2741.0,0.36471]
[1724657544423,0.18239689,2741.1,2741.0,4.4843]
[1724657544727,2.09435824,2741.2,2741.1,1.27646]
[1724657544936,2.09435824,2741.2,2741.1,3.79646]
[1724657545120,2.09435824,2741.2,2741.1,11.56135664]
[1724657545823,2.0943614,2741.2,2741.1,11.56135664]
[1724657546322,2.0943614,2741.2,2741.1,7.91335664]
[1724657546725,2.4703614,2741.2,2741.1,24.61335664]
[1724657547536,2.47036209,2741.2,2741.1,24.61335664]
[1724657548827,2.47036209,2741.2,2741.1,27.82115664]
[1724657549131,2.47036209,2741.2,2741.1,24.61335664]
[1724657549623,2.47036209,2741.2,2741.1,27.82115664]
[1724657550930,2.47036117,2741.2,2741.1,27.82115664]
[1724657551627,2.47036117,2741.2,2741.1,11.12115664]
[1724657551829,2.09436117,2741.2,2741.1,11.12115664]
[1724657552138,2.09436117,2741.2,2741.1,27.82115664]
[1724657554930,2.09436117,2741.2,2741.1,31.46915664]
[1724657555127,0.00429375,2741.2,2741.1,31.46915664]
[1724657555430,0.95853759,2741.2,2741.1,31.46915664]
[1724657556329,0.95853759,2741.2,2741.1,27.82115664]
[1724657556829,3.65229375,2741.2,2741.1,3.2078]
[1724657557039,3.65229375,2741.2,2740.3,1.90834397]
[1724657557040,7.99235056,2741.2,2740.8,3.2078]
[1724657557227,1.90868132,2741.0,2740.9,0.36472]
[1724657557628,2.09107981,2741.0,2740.9,0.36472]
[1724657558123,0.18239849,2741.0,2740.9,0.36472]
[1724657558526,0.18239849,2741.0,2740.9,4.45218935]
[1724657559128,2.09107981,2741.0,2740.8,3.2078]
[1724657559324,2.09107981,2741.0,2740.9,0.36473]
[1724657561130,2.09107981,2741.0,2740.9,3.57253]
[1724657562637,0.7344,2741.1,2741.0,0.36471]
[1724657562832,0.91680753,2741.1,2741.0,0.36471]
[1724657563339,2.76471075,2741.1,2741.0,0.36471]
[1724657563843,2.76467122,2741.1,2741.0,0.36471]
[1724657564138,0.91680753,2741.1,2741.0,0.36471]
[1724657564538,2.76473972,2741.1,2741.0,0.36471]
[1724657565340,5.15072696,2741.1,2741.0,0.36471]
[1724657565742,2.76475997,2741.1,2741.0,0.36471]
[1724657566333,5.15074721,2741.1,2741.0,0.36471]
[1724657566845,2.76475997,2741.1,2741.0,0.36471]
[1724657567349,5.15074721,2741.1,2741.0,0.36471]
[1724657570654,5.18451523,2741.1,2741.0,0.36471]
[1724657572151,5.18451523,2741.1,2741.0,1.41471]
[1724657574139,5.18451523,2741.1,2741.0,4.62251]
[1724657574846,5.18451523,2741.1,2741.0,1.41471]
[1724657575248,5.18451523,2741.1,2741.0,4.62251]
[1724657575749,5.37210731,2741.1,2741.0,4.62251]
[1724657575942,5.18969781,2741.1,2741.0,4.62251]
[1724657578839,4.45529781,2741.1,2741.0,5.5343]
[1724657579040,4.45529781,2741.1,2741.0,13.31298598]
[1724657579041,0.18241006,2741.1,2741.0,13.31298598]
[1724657579241,2.39028099,2741.2,2741.1,1.27646]
[1724657579446,4.27767652,2741.2,2741.1,1.27646]
[1724657579747,4.46006804,2741.2,2741.1,5.79274598]
[1724657580341,4.27767652,2741.2,2741.1,5.79274598]
[1724657580543,2.07422711,2741.2,2741.1,5.79274598]
[1724657580850,1.91508858,2741.2,2741.1,5.79274598]
[1724657581050,2.09747676,2741.2,2741.1,5.79274598]
[1724657581353,2.09758845,2741.2,2741.1,5.79274598]
[1724657581846,2.09758845,2741.2,2741.1,9.44074598]
[1724657582247,0.18668193,2741.2,2741.1,9.44074598]
[1724657582449,2.09769651,2741.2,2741.1,9.44074598]
[1724657582651,0.18668193,2741.2,2741.1,9.44074598]
[1724657583250,0.18668193,2741.2,2741.1,5.79274598]
[1724657583552,0.18668193,2741.2,2741.1,9.44074598]
[1724657584242,2.57266882,2741.2,2741.1,7.70318598]
[1724657584443,4.89478643,2741.2,2741.1,3.5725]
[1724657585351,2.50879919,2741.2,2741.1,3.5725]
[1724657587045,2.13529919,2741.2,2741.1,3.5725]
[1724657587647,4.99848388,2741.2,2741.1,3.5725]
[1724657588051,8.06715444,2741.2,2741.1,3.5725]
[1724657588244,8.06715444,2741.2,2741.1,3.2078]
[1724657588551,8.06715444,2741.2,2741.1,3.5725]
[1724657589256,11.71662158,2741.2,2741.1,3.2078]
[1724657589455,11.71662158,2741.2,2741.1,3.5725]
[1724657589646,8.06862158,2741.2,2741.1,3.5725]
[1724657589848,11.71662158,2741.2,2741.1,3.5725]
[1724657590049,8.64795102,2741.2,2741.1,3.5725]
[1724657590356,11.71645364,2741.2,2741.1,3.5725]
[1724657592058,11.71645364,2741.2,2741.1,0.3647]
[1724657593951,11.71645364,2741.2,2741.0,4.62251]
[1724657594152,6.164759,2741.1,2741.0,3.57251]
[1724657594352,12.09662316,2741.1,2740.9,1.41472]
[1724657594555,4.99554369,2741.0,2740.9,1.41472]
[1724657594750,8.06422348,2741.0,2740.9,1.41472]
[1724657594963,11.71222348,2741.0,2740.9,1.41472]
[1724657595958,11.71222348,2741.0,2740.9,0.36472]
[1724657596863,13.84903879,2741.0,2740.6,3.2078]
[1724657597053,2.86875891,2740.8,2740.7,0.36475]
[1724657597254,5.00111791,2740.8,2740.7,0.36475]
[1724657597447,5.38361791,2740.8,2740.7,0.36475]
[1724657597649,2.514859,2740.8,2740.7,0.36475]
[1724657603660,2.132359,2740.8,2740.7,0.36475]
[1724657603863,2.132359,2740.8,2740.7,4.14904]
[1724657604061,2.38903139,2740.8,2740.7,11.44187828]
[1724657604259,4.60353511,2740.8,2740.7,11.80662828]
[1724657605860,4.60353511,2740.8,2740.7,7.24593828]
[1724657606057,2.21450372,2740.8,2740.7,7.24593828]
[1724657606262,2.21450372,2740.8,2740.7,10.89473828]
[1724657606661,2.57147594,2740.8,2740.7,10.89473828]
[1724657607062,2.21450372,2740.8,2740.7,10.89473828]
[1724657607466,3.25315891,2741.1,2740.7,10.89473828]
[1724657607467,3.25315891,2741.1,2741.0,0.36471]
[1724657607667,3.43558059,2741.1,2741.0,0.36471]
[1724657608157,8.64356984,2741.1,2741.0,0.36471]
[1724657609168,8.64354235,2741.1,2741.0,0.36471]
[1724657612766,8.25914235,2741.1,2741.0,0.36471]
[1724657614076,8.25898252,2741.1,2741.0,0.36471]
[1724657614271,8.25898252,2741.1,2741.0,1.2765]
[1724657614570,2.21855355,2741.1,2741.0,12.28050664]
[1724657614764,2.22463975,2741.1,2741.0,12.28050664]
[1724657614971,0.18242138,2741.1,2741.0,12.28050664]
[1724657615166,0.18242138,2741.1,2741.0,11.36871664]
[1724657615966,0.18242138,2741.1,2741.0,10.45692664]
[1724657616866,0.18242138,2741.1,2741.0,11.36871664]
[1724657618161,0.18242138,2741.1,2741.0,13.10651664]
[1724657618362,1.91047947,2741.1,2741.0,13.10651664]
[1724657618769,2.09290085,2741.1,2741.0,13.10651664]
[1724657620477,2.09286895,2741.1,2741.0,13.10651664]
[1724657621068,2.09286895,2741.1,2741.0,14.01830664]
[1724657621069,1.61501773,2741.1,2741.0,14.01830664]
[1724657621273,1.436922,2741.2,2741.1,2.18822]
[1724657621477,0.00429375,2741.2,2741.1,2.54942]
[1724657621670,1.436922,2741.2,2741.1,10.66328702]
[1724657622272,0.95915594,2741.2,2741.1,15.66328702]
[1724657622472,1.43262825,2741.3,2741.2,2.18815]
[1724657622673,0.00547615,2741.4,2741.3,1.27636]
[1724657622674,1.4381044,2741.4,2741.3,1.27636]
[1724657622879,1.62046648,2741.4,2741.3,1.27636]
[1724657623080,1.62046648,2741.4,2741.3,9.76916344]
[1724657623479,1.62513064,2741.4,2741.3,9.76916344]
[1724657624376,1.44276856,2741.4,2741.3,9.76916344]
[1724657626379,0.01014031,2741.4,2741.3,9.76916344]
[1724657627185,1.44276856,2741.4,2741.3,9.76916344]
[1724657627876,0.01014031,2741.4,2741.3,9.76916344]
[1724657629382,0.01014031,2741.4,2741.3,8.85747344]
[1724657629884,0.01014031,2741.4,2741.3,12.06527344]
[1724657633189,1.44276856,2741.4,2741.3,8.55558344]
[1724657633387,2.00044516,2741.4,2741.3,12.20358344]
[1724657633581,2.00044516,2741.4,2741.3,8.55558344]
[1724657633777,0.56781691,2741.4,2741.3,8.55558344]
[1724657634888,0.56781691,2741.4,2741.3,5.34778344]
[1724657635191,0.56781691,2741.4,2741.3,8.55558344]
[1724657635395,1.81570784,2741.4,2741.3,8.55558344]
[1724657635588,0.56781691,2741.4,2741.3,3.57247]
[1724657636091,0.56781691,2741.4,2741.3,4.62247]
[1724657636684,2.47829638,2741.4,2741.3,4.62247]
[1724657638880,2.4783026,2741.4,2741.3,4.62247]
[1724657639492,0.56782313,2741.4,2741.3,4.62247]
[1724657639687,0.56782313,2741.4,2741.3,4.98617]
[1724657641700,1.44025918,2741.4,2741.3,14.55050535]
[1724657641995,0.01014031,2741.4,2741.3,14.55050535]
[1724657644791,0.01014031,2741.4,2741.3,19.55050535]
[1724657646195,0.01014031,2741.4,2741.3,19.83725731]
[1724657646603,0.01014031,2741.4,2741.3,14.83725731]
[1724657652608,0.01014031,2741.4,2741.3,11.62945731]
[1724657652807,0.01014031,2741.4,2741.3,14.83725731]
[1724657655699,1.91047947,2741.7,2741.4,0.91166]
[1724657655903,1.91047947,2741.7,2741.5,2.32628]
[1724657655904,1.61383157,2741.6,2741.5,2.32628]
[1724657656104,1.43148102,2741.6,2741.5,6.22626641]
[1724657656704,1.43603512,2741.6,2741.5,6.22906552]
[1724657656904,1.61838567,2741.6,2741.5,6.22906552]
[1724657657101,1.61838989,2741.6,2741.5,5.31743552]
[1724657657299,0.56800887,2741.6,2741.5,5.31743552]
[1724657658898,0.56800887,2741.6,2741.5,6.22906552]
[1724657659306,2.47848834,2741.6,2741.5,6.22906552]
[1724657660010,2.09738834,2741.6,2741.5,6.22906552]
[1724657663113,2.09738834,2741.6,2741.5,13.08406552]
[1724657663420,2.0981863,2741.6,2741.5,13.08406552]
[1724657666918,2.0981863,2741.6,2741.5,9.87626552]
[1724657667222,2.0981863,2741.6,2741.5,13.08406552]
[1724657667617,2.0981863,2741.6,2741.5,9.87626552]
[1724657667824,0.18690615,2741.6,2741.5,13.08406552]
[1724657668233,2.09873086,2741.6,2741.5,13.08406552]
[1724657668514,2.48183086,2741.6,2741.5,9.43686552]
[1724657669820,2.48183086,2741.6,2741.5,13.08406552]
[1724657671620,2.48183085,2741.6,2741.5,13.08406552]
[1724657672324,2.29947881,2741.6,2741.5,13.08406552]
[1724657672524,2.09873078,2741.6,2741.5,13.08406552]
[1724657673216,2.09873078,2741.6,2741.5,13.99569552]
[1724657677425,2.0987248,2741.6,2741.5,13.99569552]
[1724657680626,2.0987248,2741.6,2741.5,10.78789552]
[1724657680826,2.0987248,2741.6,2741.5,13.99569552]
[1724657681719,2.0987248,2741.6,2741.5,10.78789552]
[1724657682230,2.0987248,2741.6,2741.5,13.99569552]
[1724657682420,2.09872429,2741.6,2741.5,13.99569552]
[1724657683025,2.09872429,2741.6,2741.5,10.78789552]
[1724657683234,2.09872429,2741.6,2741.5,13.99569552]
[1724657686729,2.09934716,2741.6,2741.5,13.99569552]
[1724657687325,0.1868981,2741.6,2741.5,13.99569552]
[1724657687529,0.18689752,2741.6,2741.5,13.99569552]
[1724657691628,2.09988418,2741.6,2741.5,14.95192005]
[1724657691832,2.09988418,2741.6,2741.5,13.99569552]
[1724657692028,2.09988418,2741.6,2741.5,14.95192005]
[1724657692328,0.18689752,2741.6,2741.5,14.95192005]
[1724657692834,2.09994025,2741.6,2741.5,11.74412005]
[1724657693036,2.09994025,2741.6,2741.5,14.95192005]
[1724657694135,2.09994025,2741.6,2741.5,12.76401005]
[1724657694335,2.39056133,2741.7,2741.5,29.46401005]
[1724657694642,0.38247615,2741.8,2741.6,0.3699]
[1724657694828,1.94901565,2741.7,2741.6,0.744]
[1724657695236,1.69706793,2741.7,2741.6,21.28333256]
[1724657695541,0.00471002,2741.7,2741.6,21.28333256]
[1724657695835,0.00471002,2741.7,2741.6,24.49113256]
[1724657696341,1.70181031,2741.7,2741.6,24.49113256]
[1724657696940,1.70180274,2741.7,2741.6,24.49113256]
[1724657697338,0.00471002,2741.7,2741.6,26.45224224]
[1724657697629,1.43479177,2741.7,2741.6,26.54601461]
[1724657697836,1.43473805,2741.8,2741.6,34.0528889]
[1724657698032,0.3506,2742.4,2741.7,10.03986861]
[1724657698240,1.43326231,2742.4,2742.3,3.2078]
[1724657698438,1.43326231,2742.5,2742.3,10.34367585]
[1724657698642,1.43786534,2742.5,2742.4,1.35628205]
[1724657698838,1.43786534,2742.5,2742.4,19.48708205]
[1724657699046,1.43786534,2742.5,2742.4,24.95687268]
[1724657699346,0.00460303,2742.5,2742.4,23.47219599]
[1724657699941,0.00460303,2742.5,2742.4,26.16379683]
[1724657700136,1.78933846,2742.7,2742.4,28.89583232]
[1724657700339,4.187,2743.4,2742.6,2.00475203]
[1724657700528,1.6516228,2743.3,2742.6,0.95475203]
[1724657700728,0.7036,2743.3,2742.7,4.77943668]
[1724657700937,0.7036,2743.3,2742.8,1.33495203]
[1724657701134,0.70727095,2743.3,2742.8,1.33495203]
[1724657701343,0.7127471,2743.3,2742.9,3.82468465]
[1724657701539,0.7127471,2743.3,2743.2,1.05]
[1724657701737,0.7127471,2743.3,2743.2,4.2578]
[1724657702239,4.3583471,2743.3,2743.2,4.2578]
[1724657702629,5.5490408,2743.3,2743.2,4.2578]
[1724657704843,5.5490408,2743.3,2743.2,3.2078]
[1724657705032,10.5490408,2743.3,2743.2,1.0118]
[1724657705433,10.5490408,2743.3,2743.0,1.05]
[1724657705633,4.8362937,2743.2,2743.0,1.05]
[1724657705831,3.6456,2743.2,2743.0,1.05]
[1724657706043,4.83668454,2743.1,2743.0,1.05]
[1724657707038,9.83668454,2743.1,2743.0,1.05]
[1724657707244,4.83668454,2743.1,2743.0,1.05]
[1724657707431,9.83668454,2743.1,2743.0,1.05]
[1724657708940,9.83668454,2743.1,2742.5,3.2078]
[1724657709241,2.8686736,2743.2,2743.0,1.05]
[1724657709443,1.19091772,2743.1,2743.0,1.05]
[1724657709742,4.83651772,2743.1,2743.0,1.05]
[1724657709945,9.83651772,2743.1,2743.0,1.05]
[1724657710333,8.6456,2743.1,2743.0,1.05]
[1724657710645,9.83598907,2743.1,2743.0,1.05]
[1724657711342,9.83599777,2743.1,2743.0,1.05]
[1724657711537,4.83599777,2743.1,2743.0,1.05]
[1724657714545,5.01829231,2743.1,2743.0,1.05]
[1724657715549,10.01829231,2743.1,2742.8,1.05]
[1724657715847,3.75556792,2743.0,2742.8,1.05]
[1724657716146,0.53469454,2742.9,2742.8,1.05]
[1724657716333,4.54859454,2742.9,2742.8,1.05]
[1724657716532,9.54859454,2742.9,2742.8,1.05]
[1724657717939,14.17023096,2742.9,2742.5,3.2078]
[1724657718140,1.05,2742.6,2742.2,1.05]
[1724657718340,1.05,2742.6,2742.1,0.00547615]
[1724657718341,4.12223819,2742.5,2742.1,0.00547615]
[1724657718550,3.75393819,2742.4,2742.1,1.05547615]
[1724657718747,3.75393819,2742.3,2742.1,1.05547615]
[1724657718947,7.40033819,2742.3,2742.1,0.00547615]
[1724657719145,8.45087356,2742.2,2742.1,0.00547615]
[1724657719440,7.40087356,2742.2,2742.1,0.00547615]
[1724657719642,12.40087356,2742.2,2742.1,0.00547615]
[1724657720642,7.40087356,2742.2,2742.1,1.05547615]
[1724657720839,3.82869454,2742.2,2742.1,1.05547615]
[1724657721148,3.82869454,2742.2,2742.1,1.42004615]
[1724657721553,0.18229454,2742.2,2742.1,1.42004615]
[1724657721849,0.18233014,2742.2,2742.1,1.42004615]
[1724657722054,0.18233044,2742.2,2742.1,1.05547615]
[1724657722245,0.18233116,2742.3,2742.1,1.05547615]
[1724657722439,0.18233116,2742.3,2742.2,1.41455]
[1724657722846,3.82873116,2742.3,2742.2,1.41455]
[1724657723352,12.40076443,2742.3,2742.1,1.42003615]
[1724657723649,7.40084539,2742.2,2742.1,1.42003615]
[1724657723850,3.75444539,2742.2,2742.1,1.05547615]
[1724657724150,12.40084539,2742.2,2742.1,1.42004615]
[1724657725449,12.40084539,2742.2,2742.1,1.05547615]
[1724657725652,7.40095098,2742.2,2742.1,1.42004615]
[1724657726046,7.40095098,2742.2,2742.1,1.05547615]
[1724657726251,5.01807537,2742.2,2742.1,1.05547615]
[1724657726449,7.40095098,2742.2,2742.1,1.05547615]
[1724657726753,12.40095098,2742.2,2742.1,0.00547615]
[1724657727146,12.40095098,2742.2,2742.1,1.05547615]
[1724657727659,12.40095098,2742.2,2742.1,0.00547615]
[1724657729855,13.45095098,2742.2,2742.1,0.00547615]
[1724657730057,12.34401537,2742.2,2742.1,0.00547615]
[1724657730245,17.36588839,2742.2,2742.1,0.00547615]
[1724657730555,14.50760231,2742.2,2742.1,0.00317351]
[1724657730755,16.93627206,2742.2,2742.1,0.00317351]
[1724657730951,17.84766206,2742.2,2742.1,0.00317351]
[1724657731653,14.50760231,2742.2,2742.1,0.00317351]
[1724657732443,17.84296603,2742.2,2742.1,0.00317351]
[1724657734053,21.05076603,2742.2,2742.1,0.00317351]
[1724657735159,17.84296603,2742.2,2742.1,0.00317351]
[1724657735359,21.04945982,2742.2,2742.1,0.00317351]
[1724657735556,17.7140961,2742.2,2742.1,0.00317351]
[1724657735862,0.36463,2741.6,2741.5,0.00279911]
[1724657736156,4.27218294,2741.6,2741.5,0.00279911]
[1724657736360,16.45130074,2741.6,2741.5,0.00279911]
[1724657736554,17.36171833,2741.6,2741.5,0.00279911]
[1724657736856,14.5053378,2741.6,2741.5,0.00279911]
[1724657737159,17.36175216,2741.6,2741.5,0.00279911]
[1724657737662,15.20482579,2741.6,2741.5,0.00279911]
[1724657738364,18.41262579,2741.6,2741.5,0.00279911]
[1724657738553,15.55621143,2741.6,2741.5,0.00279911]
[1724657739059,12.72891143,2741.6,2741.5,0.00279911]
[1724657739261,15.93671143,2741.6,2741.5,0.00279911]
[1724657740168,15.93489331,2741.6,2741.5,0.00279911]
[1724657741057,12.72709331,2741.6,2741.5,0.00279911]
[1724657741363,15.93489331,2741.6,2741.5,0.00279911]
[1724657741564,14.88489331,2741.6,2741.5,0.00279911]
[1724657741860,15.02330331,2741.6,2741.5,0.00279911]
[1724657742561,17.39817008,2741.6,2741.5,0.00279911]
[1724657742764,15.02330331,2741.6,2741.5,0.00279911]
[1724657743357,15.93489331,2741.6,2741.5,0.00279911]
[1724657743753,18.30917945,2741.6,2741.5,0.00279911]
[1724657744959,18.30761323,2741.6,2741.5,0.00279911]
[1724657745159,15.93332709,2741.6,2741.5,0.00279911]
[1724657745454,18.30795612,2741.6,2741.5,0.00279911]
[1724657747759,17.39636612,2741.6,2741.5,0.00279911]
[1724657748560,18.30795612,2741.6,2741.5,0.00279911]
[1724657749864,18.30783287,2741.6,2741.5,0.00279911]
[1724657755270,18.30783287,2741.6,2741.3,0.7246]
[1724657755478,3.31371494,2741.4,2741.3,0.42467751]
[1724657755773,3.49614235,2741.4,2741.3,0.42467751]
[1724657755975,7.14414235,2741.4,2741.3,0.42467751]
[1724657756476,7.14414235,2741.4,2741.3,0.42826893]
[1724657756877,10.35194235,2741.4,2741.3,0.42826893]
[1724657757684,10.35194235,2741.4,2741.3,0.79293893]
[1724657758473,8.45288741,2741.4,2741.3,0.79293893]
[1724657759180,8.45288741,2741.4,2741.3,0.42826893]
[1724657759480,9.62586015,2741.4,2741.3,0.42826893]
[1724657759976,9.62586015,2741.4,2741.3,0.79293893]
[1724657760381,8.45288741,2741.4,2741.3,0.79293893]
[1724657760682,11.63622808,2741.4,2741.3,0.79293893]
[1724657760879,8.08822741,2741.4,2741.3,0.79293893]
[1724657761375,8.45288741,2741.4,2741.3,0.42826893]
[1724657761574,12.00134879,2741.4,2741.3,0.42826893]
[1724657761977,8.79354879,2741.4,2741.3,0.42826893]
[1724657762283,11.63668879,2741.4,2741.3,0.79293893]
[1724657763276,11.63719174,2741.4,2741.3,0.79293893]
[1724657763477,9.26256271,2741.4,2741.3,0.79293893]